[Event "ONJK-C 2019"]
[Site "Borne"]
[Date "2019.08.06"]
[Round "3.3"]
[White "Boeren, Jurriaan"]
[Black "Goudriaan, Rafael"]
[Result "1-0"]
[ECO "C50"]
[WhiteElo "1522"]
[BlackElo "1719"]
[Annotator "NA"]
[PlyCount "103"]
[EventDate "2019.08.05"]
[EventType "swiss"]
[EventCountry "NED"]
[SourceTitle "playchess.com"]
[Source "ChessBase"]
[SourceQuality "1"]
[TimeControl "5400+30"]

1. e4 {[%emt 0:00:00]} e5 {[%emt 0:00:00]} 2. Nf3 {[%emt 0:00:00]} Nc6 {[%emt 0:00:00]} 3. Bc4 {[%emt 0:00:00]} Bc5 {[%emt 0:00:00]} 4. d3 {[%emt 0:00:03]} Nf6 {[%emt 0:00:00]} 5. Be3 {[%emt 0:00:42]} Bb6 {[%emt 0:00:02]} 6. Nbd2 {[%emt 0:00:21]} d6 {[%emt 0:00:12]} 7. h3 {[%emt 0:00:05]} Be6 {[%emt 0:00:19]} 8. Bb3 {[%emt 0:00:22]} Qd7 {[%emt 0:00:17]} 9. c3 {[%emt 0:00:30]} O-O {[%emt 0:02:01]} 10. Bxe6 {[%emt 0:00:35]} fxe6 {[%emt 0:00:23]} 11. O-O {[%emt 0:01:59]} d5 {[%emt 0:00:18]} 12. Bxb6 {[%emt 0:01:17]} axb6 {[%emt 0:00:09]} 13. Re1 {[%emt 0:01:00]} d4 {[%emt 0:02:00]} 14. cxd4 {[%emt 0:01:28]} exd4 {[%emt 0:00:13]} 15. Qb3 {[%emt 0:04:55]} Kh8 {[%emt 0:01:51]} 16. Nc4 {[%emt 0:03:37]} Qe7 {[%emt 0:01:21]} 17. a3 {[%emt 0:03:01]} e5 {[%emt 0:00:52]} 18. Rf1 {[%emt 0:05:39]} Nh5 {[%emt 0:00:53]} 19. Nh2 {[%emt 0:09:47]} Nf4 {[%emt 0:00:35]} 20. Nd2 {[%emt 0:02:33]} Qg5 {[%emt 0:01:09]} 21. Ng4 {[%emt 0:01:42]} Nxh3+ {[%emt 0:00:53]} 22. gxh3 {[%emt 0:00:45]} Qxd2 {[%emt 0:00:10]} 23. Kh1 {[%emt 0:05:33]} Rf3 {[%emt 0:00:15]} 24. Rad1 {[%emt 0:01:21]} Qf4 {[%emt 0:00:22]} 25. Kg2 {[%emt 0:00:51]} Rf8 {[%emt 0:00:30]} 26. Qc2 {[%emt 0:00:27]} h5 {[%emt 0:01:00]} 27. Nh2 {[%emt 0:01:49]} Qg5+ {[%emt 0:00:24]} 28. Kh1 {[%emt 0:00:13]} Rxh3 {[%emt 0:00:44]} 29. Rg1 {[%emt 0:00:33]} Qh4 {[%emt 0:01:27]} 30. Rg2 {[%emt 0:00:13]} Rf6 {[%emt 0:00:31]} 31. Rdg1 {[%emt 0:00:34]} Qf4 {[%emt 0:02:28]} 32. Qd1 {[%emt 0:01:02]} Ne7 {[%emt 0:00:43]} 33. Rg3 {[%emt 0:00:51]} Rh4 {[%emt 0:01:15]} 34. R1g2 {[%emt 0:00:51]} Rc6 {[%emt 0:01:55]} 35. Rg1 {[%emt 0:01:57]} Qxf2 {[%emt 0:00:41]} 36. R3g2 {[%emt 0:02:55]} Qe3 {[%emt 0:01:33]} 37. Qa4 {[%emt 0:04:51]} Qh3 {[%emt 0:02:17]} 38. Qa8+ {[%emt 0:00:23]} Nc8 {[%emt 0:02:28]} 39. Qxb7 {[%emt 0:01:16]} Rc5 {[%emt 0:00:57]} 40. b4 {[%emt 0:00:19]} Rc3 {[%emt 0:00:28]} 41. Qd5 {[%emt 0:00:40]} Rg4 {[%emt 0:00:23]} 42. Qd8+ {[%emt 0:00:56]} Kh7 {[%emt 0:00:32]} 43. Qxc8 {[%emt 0:00:16]} Qxg2+ {[%emt 0:02:08]} 44. Rxg2 {[%emt 0:01:18]} Rc1+ {[%emt 0:00:07]} 45. Nf1 {[%emt 0:00:07]} Rxf1+ {[%emt 0:00:26]} 46. Kh2 {[%emt 0:00:06]} Rh4+ {[%emt 0:00:29]} 47. Kg3 {[%emt 0:00:11]} Rg4+ {[%emt 0:01:18]} 48. Kh3 {[%emt 0:02:43]} Rh1+ {[%emt 0:01:44]} 49. Rh2 {[%emt 0:00:27]} Rhg1 {[%emt 0:00:14]} 50. Qf5+ {[%emt 0:00:41]} Kh8 {[%emt 0:01:48]} 51. Qxh5+ {[%emt 0:00:12]} Kg8 {[%emt 0:00:09]} 52. Qxg4 {[%emt 0:00:07]} 1-0

[Event "ONJK-C 2019"]
[Site "Borne"]
[Date "2019.08.06"]
[Round "3.4"]
[White "Malfliet, Alexander"]
[Black "De Vries, Fabian"]
[Result "1-0"]
[ECO "B76"]
[WhiteElo "1491"]
[BlackElo "1704"]
[Annotator "NA"]
[PlyCount "53"]
[EventDate "2019.08.05"]
[EventType "swiss"]
[EventCountry "NED"]
[SourceTitle "playchess.com"]
[Source "ChessBase"]
[SourceQuality "1"]
[TimeControl "5400+30"]

1. e4 {[%emt 0:00:00]} c5 {[%emt 0:00:00]} 2. Nf3 {[%emt 0:00:00]} d6 {[%emt 0:00:00]} 3. d4 {[%emt 0:00:00]} cxd4 {[%emt 0:00:00]} 4. Nxd4 {[%emt 0:00:00]} Nf6 {[%emt 0:00:00]} 5. Nc3 {[%emt 0:00:00]} g6 {[%emt 0:00:00]} 6. Be3 {[%emt 0:00:00]} Bg7 {[%emt 0:00:00]} 7. f3 {[%emt 0:00:00]} O-O {[%emt 0:00:25]} 8. Qd2 {[%emt 0:00:01]} a6 {[%emt 0:00:18]} 9. g4 {[%emt 0:00:26]} b5 {[%emt 0:01:19]} 10. h4 {[%emt 0:01:01]} Bb7 {[%emt 0:02:27]} 11. h5 {[%emt 0:00:15]} d5 {[%emt 0:10:27]} 12. hxg6 {[%emt 0:00:11]} fxg6 {[%emt 0:01:50]} 13. Ne6 {[%emt 0:04:31]} Qd6 {[%emt 0:06:06]} 14. Nxf8 {[%emt 0:00:58]} Kxf8 {[%emt 0:02:03]} 15. O-O-O {[%emt 0:08:13]} dxe4 {[%emt 0:04:09]} 16. Qf2 {[%emt 0:01:05]} Qe6 {[%emt 0:03:00]} 17. Rd8+ {[%emt 0:01:01]} Ne8 {[%emt 0:03:06]} 18. fxe4+ {[%emt 0:00:07]} Qf7 {[%emt 0:00:28]} 19. Qh2 {[%emt 0:03:12]} Bxc3 {[%emt 0:04:59]} 20. bxc3 {[%emt 0:00:44]} Nc6 {[%emt 0:12:54]} 21. Rxa8 {[%emt 0:00:47]} Bxa8 {[%emt 0:00:09]} 22. Bd3 {[%emt 0:00:55]} Kg8 {[%emt 0:01:21]} 23. Rf1 {[%emt 0:00:48]} Qxa2 {[%emt 0:03:23]} 24. Bh6 {[%emt 0:00:41]} Ng7 {[%emt 0:00:21]} 25. Qf4 {[%emt 0:00:11]} Ne6 {[%emt 0:01:08]} 26. Qf8+ {[%emt 0:00:23]} Nxf8 {[%emt 0:00:04]} 27. Rxf8# {[%emt 0:00:39]} 1-0

[Event "ONJK-C 2019"]
[Site "Borne"]
[Date "2019.08.06"]
[Round "3.5"]
[White "Smeets, Kobe"]
[Black "De Jong, Mats"]
[Result "0-1"]
[ECO "C77"]
[WhiteElo "1666"]
[BlackElo "1356"]
[Annotator "NA"]
[PlyCount "86"]
[EventDate "2019.08.05"]
[EventType "swiss"]
[EventCountry "NED"]
[SourceTitle "playchess.com"]
[Source "ChessBase"]
[SourceQuality "1"]
[TimeControl "5400+30"]

1. e4 {[%emt 0:00:00]} e5 {[%emt 0:00:00]} 2. Nf3 {[%emt 0:00:00]} Nc6 {[%emt 0:00:00]} 3. Bb5 {[%emt 0:00:00]} a6 {[%emt 0:00:00]} 4. Ba4 {[%emt 0:00:00]} b5 {[%emt 0:00:15]} 5. Bb3 {[%emt 0:00:00]} Nf6 {[%emt 0:00:19]} 6. O-O {[%emt 0:00:13]} Bc5 {[%emt 0:00:58]} 7. d3 {[%emt 0:00:19]} O-O {[%emt 0:00:30]} 8. c3 {[%emt 0:00:11]} d5 {[%emt 0:00:56]} 9. exd5 {[%emt 0:01:47]} Nxd5 {[%emt 0:00:10]} 10. Re1 {[%emt 0:01:09]} Re8 {[%emt 0:00:59]} 11. d4 {[%emt 0:00:46]} Bb6 {[%emt 0:02:45]} 12. dxe5 {[%emt 0:01:51]} Be6 {[%emt 0:00:41]} 13. Bg5 {[%emt 0:01:45]} Qd7 {[%emt 0:00:54]} 14. Nbd2 {[%emt 0:01:52]} h6 {[%emt 0:00:43]} 15. Bh4 {[%emt 0:00:45]} Nf4 {[%emt 0:01:14]} 16. Ne4 {[%emt 0:08:30]} Ng6 {[%emt 0:01:37]} 17. Qxd7 {[%emt 0:02:07]} Bxd7 {[%emt 0:00:06]} 18. Bg3 {[%emt 0:03:24]} Ncxe5 {[%emt 0:00:57]} 19. Nxe5 {[%emt 0:00:29]} Nxe5 {[%emt 0:00:09]} 20. Rad1 {[%emt 0:01:15]} Bf5 {[%emt 0:02:16]} 21. Bd5 {[%emt 0:08:11]} Rad8 {[%emt 0:05:02]} 22. Ng5 {[%emt 0:24:59]} hxg5 {[%emt 0:07:50]} 23. Rxe5 {[%emt 0:06:33]} Rxe5 {[%emt 0:00:28]} 24. Bxe5 {[%emt 0:00:11]} Be6 {[%emt 0:00:15]} 25. Bb3 {[%emt 0:01:14]} Rxd1+ {[%emt 0:00:42]} 26. Bxd1 {[%emt 0:00:05]} Bxa2 {[%emt 0:00:08]} 27. b3 {[%emt 0:00:35]} f6 {[%emt 0:02:44]} 28. Bg3 {[%emt 0:00:48]} a5 {[%emt 0:01:38]} 29. Bc2 {[%emt 0:00:36]} c5 {[%emt 0:01:01]} 30. Bd6 {[%emt 0:05:20]} c4 {[%emt 0:01:57]} 31. bxc4 {[%emt 0:00:55]} Bxc4 {[%emt 0:00:22]} 32. Bg6 {[%emt 0:00:41]} Bf7 {[%emt 0:01:43]} 33. Be4 {[%emt 0:01:04]} g6 {[%emt 0:02:36]} 34. g4 {[%emt 0:01:08]} Kg7 {[%emt 0:00:55]} 35. Bc6 {[%emt 0:00:48]} Bc4 {[%emt 0:00:42]} 36. Be8 {[%emt 0:01:37]} a4 {[%emt 0:02:00]} 37. Ba3 {[%emt 0:02:34]} Ba5 {[%emt 0:03:37]} 38. Bb2 {[%emt 0:00:08]} a3 {[%emt 0:01:52]} 39. Ba1 {[%emt 0:01:01]} Bc7 {[%emt 0:01:21]} 40. Bc6 {[%emt 0:01:48]} Bd3 {[%emt 0:01:43]} 41. Kg2 {[%emt 0:03:17]} Bf4 {[%emt 0:00:15]} 42. c4 {[%emt 0:01:30]} bxc4 {[%emt 0:01:07]} 43. Ba4 {[%emt 0:00:53]} Bc1 {[%emt 0:00:22]} 0-1

[Event "ONJK-C 2019"]
[Site "Borne"]
[Date "2019.08.06"]
[Round "3.6"]
[White "Tiggelman, Vincent"]
[Black "Knol, Daniel"]
[Result "1-0"]
[ECO "B53"]
[WhiteElo "1358"]
[BlackElo "1662"]
[Annotator "NA"]
[PlyCount "99"]
[EventDate "2019.08.05"]
[EventType "swiss"]
[EventCountry "NED"]
[SourceTitle "playchess.com"]
[Source "ChessBase"]
[SourceQuality "1"]
[TimeControl "5400+30"]

1. e4 {[%emt 0:00:00]} c5 {[%emt 0:00:00]} 2. Nf3 {[%emt 0:00:00]} d6 {[%emt 0:00:00]} 3. Nc3 {[%emt 0:00:00]} Nf6 {[%emt 0:00:00]} 4. d4 {[%emt 0:07:03]} cxd4 {[%emt 0:00:00]} 5. Qxd4 {[%emt 0:00:09]} Bd7 {[%emt 0:00:33]} 6. e5 {[%emt 0:04:31]} Nc6 {[%emt 0:00:18]} 7. Qf4 {[%emt 0:02:01]} dxe5 {[%emt 0:01:10]} 8. Nxe5 {[%emt 0:00:20]} Nxe5 {[%emt 0:00:41]} 9. Qxe5 {[%emt 0:00:32]} g6 {[%emt 0:00:58]} 10. Ne4 {[%emt 0:05:08]} Qb6 {[%emt 0:01:35]} 11. Be3 {[%emt 0:06:16]} Qb4+ {[%emt 0:04:27]} 12. Nc3 {[%emt 0:06:02]} Rc8 {[%emt 0:00:31]} 13. O-O-O {[%emt 0:01:23]} Qg4 {[%emt 0:48:51]} 14. Bb5 {[%emt 0:14:59]} Rg8 {[%emt 0:04:08]} 15. Rd4 {[%emt 0:04:42]} Qf5 {[%emt 0:05:42]} 16. Qxf5 {[%emt 0:00:58]} gxf5 {[%emt 0:00:07]} 17. Bxd7+ {[%emt 0:00:07]} Nxd7 {[%emt 0:00:03]} 18. Rhd1 {[%emt 0:00:17]} Nf6 {[%emt 0:02:21]} 19. Nb5 {[%emt 0:01:12]} e5 {[%emt 0:01:32]} 20. Nd6+ {[%emt 0:01:11]} Bxd6 {[%emt 0:00:03]} 21. Rxd6 {[%emt 0:00:40]} Ke7 {[%emt 0:00:58]} 22. g3 {[%emt 0:01:09]} b6 {[%emt 0:00:36]} 23. h4 {[%emt 0:01:20]} Rcd8 {[%emt 0:02:25]} 24. Rxd8 {[%emt 0:01:59]} Rxd8 {[%emt 0:00:07]} 25. Bg5 {[%emt 0:00:42]} Rxd1+ {[%emt 0:00:10]} 26. Kxd1 {[%emt 0:00:07]} Ke6 {[%emt 0:00:03]} 27. Bxf6 {[%emt 0:00:35]} Kxf6 {[%emt 0:00:05]} 28. Ke2 {[%emt 0:00:07]} e4 {[%emt 0:00:15]} 29. Ke3 {[%emt 0:01:14]} Ke5 {[%emt 0:00:10]} 30. a4 {[%emt 0:00:46]} a6 {[%emt 0:01:53]} 31. c3 {[%emt 0:00:28]} b5 {[%emt 0:00:11]} 32. axb5 {[%emt 0:00:09]} axb5 {[%emt 0:00:01]} 33. b3 {[%emt 0:00:08]} h5 {[%emt 0:00:18]} 34. c4 {[%emt 0:00:37]} b4 {[%emt 0:00:17]} 35. c5 {[%emt 0:01:49]} Kd5 {[%emt 0:00:14]} 36. Kf4 {[%emt 0:07:01]} Kxc5 {[%emt 0:00:08]} 37. Ke5 {[%emt 0:00:07]} f6+ {[%emt 0:00:25]} 38. Kxf5 {[%emt 0:00:08]} Kd4 {[%emt 0:00:03]} 39. g4 {[%emt 0:00:07]} hxg4 {[%emt 0:00:24]} 40. Kxg4 {[%emt 0:00:03]} Ke5 {[%emt 0:00:48]} 41. h5 {[%emt 0:01:07]} f5+ {[%emt 0:00:01]} 42. Kg5 {[%emt 0:00:15]} f4 {[%emt 0:00:07]} 43. h6 {[%emt 0:01:10]} e3 {[%emt 0:00:03]} 44. fxe3 {[%emt 0:00:37]} fxe3 {[%emt 0:00:01]} 45. h7 {[%emt 0:00:07]} Ke4 {[%emt 0:00:22]} 46. h8=Q {[%emt 0:00:13]} Kd3 {[%emt 0:00:06]} 47. Qd8+ {[%emt 0:00:25]} Kc3 {[%emt 0:00:27]} 48. Qd5 {[%emt 0:01:35]} e2 {[%emt 0:00:06]} 49. Qc4+ {[%emt 0:01:41]} Kd2 {[%emt 0:00:05]} 50. Qxb4+ {[%emt 0:00:09]} 1-0

[Event "ONJK-C 2019"]
[Site "Borne"]
[Date "2019.08.06"]
[Round "3.7"]
[White "Alvares, Thomas"]
[Black "Kumar, Prajit Sai"]
[Result "0-1"]
[ECO "B70"]
[WhiteElo "1408"]
[BlackElo "1574"]
[Annotator "NA"]
[PlyCount "83"]
[EventDate "2019.08.05"]
[EventType "swiss"]
[EventCountry "NED"]
[SourceTitle "playchess.com"]
[Source "ChessBase"]
[SourceQuality "1"]
[TimeControl "5400+30"]

1. e4 {[%emt 0:00:00]} c5 {[%emt 0:00:00]} 2. Nf3 {[%emt 0:00:00]} d6 {[%emt 0:00:00]} 3. d4 {[%emt 0:00:00]} cxd4 {[%emt 0:00:00]} 4. Nxd4 {[%emt 0:00:00]} Nf6 {[%emt 0:00:00]} 5. Nc3 {[%emt 0:00:00]} g6 {[%emt 0:00:00]} 6. Bc4 {[%emt 0:01:13]} Bg7 {[%emt 0:00:03]} 7. O-O {[%emt 0:00:15]} O-O {[%emt 0:00:28]} 8. Qe2 {[%emt 0:00:54]} Nbd7 {[%emt 0:00:19]} 9. Rd1 {[%emt 0:01:34]} a6 {[%emt 0:02:16]} 10. a3 {[%emt 0:04:39]} Qc7 {[%emt 0:03:36]} 11. h3 {[%emt 0:03:39]} Nc5 {[%emt 0:01:05]} 12. Ba2 {[%emt 0:03:02]} e5 {[%emt 0:05:50]} 13. Nf3 {[%emt 0:02:44]} Be6 {[%emt 0:01:41]} 14. Bxe6 {[%emt 0:03:01]} Nxe6 {[%emt 0:01:02]} 15. Be3 {[%emt 0:06:02]} Rac8 {[%emt 0:04:15]} 16. Qd2 {[%emt 0:04:08]} Rfd8 {[%emt 0:01:07]} 17. Rac1 {[%emt 0:02:56]} Qc4 {[%emt 0:10:43]} 18. Bb6 {[%emt 0:09:31]} Rd7 {[%emt 0:00:13]} 19. Qe3 {[%emt 0:01:06]} Nc5 {[%emt 0:06:30]} 20. Nd2 {[%emt 0:08:34]} Qe6 {[%emt 0:03:52]} 21. b4 {[%emt 0:01:00]} d5 {[%emt 0:00:28]} 22. exd5 {[%emt 0:03:53]} Qxb6 {[%emt 0:00:36]} 23. bxc5 {[%emt 0:00:45]} Qxc5 {[%emt 0:01:07]} 24. Qxc5 {[%emt 0:05:26]} Rxc5 {[%emt 0:00:55]} 25. Na4 {[%emt 0:02:22]} Rcxd5 {[%emt 0:12:09]} 26. Nb6 {[%emt 0:00:33]} Rxd2 {[%emt 0:00:07]} 27. Nxd7 {[%emt 0:00:48]} Rxd7 {[%emt 0:00:07]} 28. Rxd7 {[%emt 0:00:23]} Nxd7 {[%emt 0:00:10]} 29. Rd1 {[%emt 0:00:15]} Nc5 {[%emt 0:00:14]} 30. Rd8+ {[%emt 0:00:47]} Bf8 {[%emt 0:00:10]} 31. Rd5 {[%emt 0:00:46]} f6 {[%emt 0:00:16]} 32. Kf1 {[%emt 0:01:35]} Kf7 {[%emt 0:00:18]} 33. Ke2 {[%emt 0:00:58]} Be7 {[%emt 0:00:52]} 34. f3 {[%emt 0:00:56]} Ke6 {[%emt 0:01:00]} 35. c4 {[%emt 0:01:40]} b5 {[%emt 0:02:44]} 36. Rd1 {[%emt 0:01:17]} bxc4 {[%emt 0:00:24]} 37. Rb1 {[%emt 0:00:17]} Nb3 {[%emt 0:00:38]} 38. a4 {[%emt 0:01:40]} Kd5 {[%emt 0:01:45]} 39. Rd1+ {[%emt 0:01:23]} Nd4+ {[%emt 0:00:33]} 40. Ke3 {[%emt 0:00:42]} c3 {[%emt 0:01:18]} 41. Kd3 {[%emt 0:00:47]} c2 {[%emt 0:00:05]} 42. Ra1 {[%emt 0:03:10]} 0-1

[Event "ONJK-C 2019"]
[Site "Borne"]
[Date "2019.08.06"]
[Round "3.8"]
[White "Yannopapas, Leontios"]
[Black "Nielsen, Philip"]
[Result "1-0"]
[ECO "D00"]
[WhiteElo "1329"]
[BlackElo "1797"]
[Annotator "NA"]
[PlyCount "53"]
[EventDate "2019.08.05"]
[EventType "swiss"]
[EventCountry "NED"]
[SourceTitle "playchess.com"]
[Source "ChessBase"]
[SourceQuality "1"]
[TimeControl "5400+30"]

1. d4 {[%emt 0:00:00]} d5 {[%emt 0:00:00]} 2. Nc3 {[%emt 0:00:00]} Bf5 {[%emt 0:00:15]} 3. Bf4 {[%emt 0:00:00]} e6 {[%emt 0:00:52]} 4. f3 {[%emt 0:00:59]} a6 {[%emt 0:01:33]} 5. a3 {[%emt 0:05:14]} Nf6 {[%emt 0:03:05]} 6. g4 {[%emt 0:01:55]} Bg6 {[%emt 0:02:19]} 7. h4 {[%emt 0:00:21]} h6 {[%emt 0:01:09]} 8. e3 {[%emt 0:01:07]} Bd6 {[%emt 0:02:33]} 9. Nh3 {[%emt 0:00:57]} Qe7 {[%emt 0:03:32]} 10. Bd3 {[%emt 0:02:03]} Bxd3 {[%emt 0:01:25]} 11. Qxd3 {[%emt 0:00:13]} Nxg4 {[%emt 0:03:11]} 12. fxg4 {[%emt 0:06:03]} Qxh4+ {[%emt 0:00:17]} 13. Nf2 {[%emt 0:01:33]} Qe7 {[%emt 0:01:03]} 14. Bxd6 {[%emt 0:00:24]} Qxd6 {[%emt 0:00:11]} 15. O-O-O {[%emt 0:01:29]} Nd7 {[%emt 0:00:52]} 16. e4 {[%emt 0:02:35]} dxe4 {[%emt 0:01:01]} 17. Ncxe4 {[%emt 0:01:42]} Qe7 {[%emt 0:00:13]} 18. Rhe1 {[%emt 0:01:55]} O-O-O {[%emt 0:00:31]} 19. Qb3 {[%emt 0:01:37]} h5 {[%emt 0:01:19]} 20. d5 {[%emt 0:06:01]} hxg4 {[%emt 0:01:10]} 21. d6 {[%emt 0:02:36]} Qf8 {[%emt 0:01:34]} 22. dxc7 {[%emt 0:00:00]} Kxc7 {[%emt 0:00:00]} 23. Qg3+ {[%emt 0:04:26]} Kc8 {[%emt 0:01:00]} 24. Nd6+ {[%emt 0:00:21]} Kb8 {[%emt 0:00:38]} 25. Nxf7+ {[%emt 0:00:57]} Ka8 {[%emt 0:00:13]} 26. Nxd8 {[%emt 0:00:29]} Qxd8 {[%emt 0:00:33]} 27. Qxg4 {[%emt 0:00:46]} 1-0

[Event "ONJK-C 2019"]
[Site "Borne"]
[Date "2019.08.06"]
[Round "3.9"]
[White "Neisingh, Nils"]
[Black "Debunne, Lasse"]
[Result "1-0"]
[ECO "C90"]
[WhiteElo "1710"]
[BlackElo "1314"]
[Annotator "NA"]
[PlyCount "69"]
[EventDate "2019.08.05"]
[EventType "swiss"]
[EventCountry "NED"]
[SourceTitle "playchess.com"]
[Source "ChessBase"]
[SourceQuality "1"]
[TimeControl "5400+30"]

1. e4 {[%emt 0:00:00]} e5 {[%emt 0:00:00]} 2. Nf3 {[%emt 0:00:00]} Nc6 {[%emt 0:00:00]} 3. Bb5 {[%emt 0:00:00]} a6 {[%emt 0:00:00]} 4. Ba4 {[%emt 0:00:00]} Nf6 {[%emt 0:00:00]} 5. O-O {[%emt 0:00:06]} b5 {[%emt 0:00:05]} 6. Bb3 {[%emt 0:00:06]} Be7 {[%emt 0:00:06]} 7. Re1 {[%emt 0:00:18]} O-O {[%emt 0:00:18]} 8. c3 {[%emt 0:00:35]} d6 {[%emt 0:00:30]} 9. d3 {[%emt 0:00:28]} Bb7 {[%emt 0:07:58]} 10. Nbd2 {[%emt 0:00:26]} Qd7 {[%emt 0:07:10]} 11. Nf1 {[%emt 0:01:11]} Rad8 {[%emt 0:06:02]} 12. Ng3 {[%emt 0:02:59]} a5 {[%emt 0:05:55]} 13. Bc2 {[%emt 0:12:17]} Rfe8 {[%emt 0:03:40]} 14. Bg5 {[%emt 0:08:11]} h6 {[%emt 0:03:07]} 15. Bd2 {[%emt 0:02:52]} Na7 {[%emt 0:04:05]} 16. Nf5 {[%emt 0:00:59]} d5 {[%emt 0:03:33]} 17. Nxe5 {[%emt 0:12:22]} Qe6 {[%emt 0:01:59]} 18. Nxe7+ {[%emt 0:27:53]} Rxe7 {[%emt 0:01:11]} 19. exd5 {[%emt 0:01:38]} Qxd5 {[%emt 0:00:56]} 20. Nf3 {[%emt 0:00:06]} Rxe1+ {[%emt 0:00:33]} 21. Qxe1 {[%emt 0:00:37]} g5 {[%emt 0:00:33]} 22. Qe7 {[%emt 0:03:18]} Qd6 {[%emt 0:01:53]} 23. Qxd6 {[%emt 0:00:49]} Rxd6 {[%emt 0:00:19]} 24. Nd4 {[%emt 0:00:40]} Bc8 {[%emt 0:01:05]} 25. Be3 {[%emt 0:02:07]} Ng4 {[%emt 0:03:50]} 26. Re1 {[%emt 0:01:23]} c5 {[%emt 0:01:02]} 27. Nb3 {[%emt 0:02:49]} Nxe3 {[%emt 0:01:28]} 28. Rxe3 {[%emt 0:00:58]} c4 {[%emt 0:00:25]} 29. Nd4 {[%emt 0:04:19]} cxd3 {[%emt 0:01:47]} 30. Bxd3 {[%emt 0:04:03]} f5 {[%emt 0:01:49]} 31. h3 {[%emt 0:02:41]} f4 {[%emt 0:00:28]} 32. Re7 {[%emt 0:01:00]} Rd7 {[%emt 0:01:21]} 33. Re5 {[%emt 0:00:38]} Ba6 {[%emt 0:01:18]} 34. Re6 {[%emt 0:01:14]} Bc8 {[%emt 0:00:54]} 35. Rxh6 {[%emt 0:00:18]} 1-0

[Event "ONJK-C 2019"]
[Site "Borne"]
[Date "2019.08.06"]
[Round "3.10"]
[White "Dhaenens, Leon"]
[Black "De Putter, Sven"]
[Result "1-0"]
[ECO "A20"]
[WhiteElo "1583"]
[BlackElo "1319"]
[Annotator "NA"]
[PlyCount "21"]
[EventDate "2019.08.05"]
[EventType "swiss"]
[EventCountry "NED"]
[SourceTitle "playchess.com"]
[Source "ChessBase"]
[SourceQuality "1"]
[TimeControl "5400+30"]

1. c4 {[%emt 0:00:00]} e5 {[%emt 0:00:00]} 2. g3 {[%emt 0:00:00]} Nf6 {[%emt 0:00:07]} 3. Bg2 {[%emt 0:00:00]} d5 {[%emt 0:00:26]} 4. cxd5 {[%emt 0:00:00]} Nxd5 {[%emt 0:00:05]} 5. Nf3 {[%emt 0:00:15]} Nc6 {[%emt 0:00:22]} 6. O-O {[%emt 0:00:38]} Be6 {[%emt 0:00:52]} 7. d4 {[%emt 0:00:48]} Bd6 {[%emt 0:07:31]} 8. e4 {[%emt 0:01:41]} Bg4 {[%emt 0:09:34]} 9. exd5 {[%emt 0:01:14]} Nxd4 {[%emt 0:00:28]} 10. Be3 {[%emt 0:01:55]} Nf5 {[%emt 0:01:51]} 11. Qa4+ {[%emt 0:00:59]} 1-0

[Event "ONJK-C 2019"]
[Site "Borne"]
[Date "2019.08.06"]
[Round "3.11"]
[White "Van der Veen, Tjado"]
[Black "De Rooij, Kevin"]
[Result "0-1"]
[ECO "B44"]
[WhiteElo "1282"]
[BlackElo "1480"]
[Annotator "NA"]
[PlyCount "100"]
[EventDate "2019.08.05"]
[EventType "swiss"]
[EventCountry "NED"]
[SourceTitle "playchess.com"]
[Source "ChessBase"]
[SourceQuality "1"]
[TimeControl "5400+30"]

1. e4 {[%emt 0:00:00]} c5 {[%emt 0:00:00]} 2. Nf3 {[%emt 0:00:00]} e6 {[%emt 0:00:00]} 3. d4 {[%emt 0:00:02]} cxd4 {[%emt 0:00:00]} 4. Nxd4 {[%emt 0:00:03]} Nc6 {[%emt 0:00:00]} 5. c3 {[%emt 0:00:12]} Nf6 {[%emt 0:00:19]} 6. Bg5 {[%emt 0:01:12]} Be7 {[%emt 0:00:39]} 7. Nd2 {[%emt 0:01:28]} d5 {[%emt 0:02:00]} 8. exd5 {[%emt 0:06:28]} Nxd5 {[%emt 0:01:31]} 9. Bxe7 {[%emt 0:00:33]} Ndxe7 {[%emt 0:01:18]} 10. N2f3 {[%emt 0:00:16]} O-O {[%emt 0:01:51]} 11. Bd3 {[%emt 0:01:05]} h6 {[%emt 0:09:52]} 12. Bc2 {[%emt 0:01:36]} Qb6 {[%emt 0:04:24]} 13. Bb3 {[%emt 0:05:13]} Rd8 {[%emt 0:00:37]} 14. Qc2 {[%emt 0:02:21]} Bd7 {[%emt 0:03:19]} 15. O-O-O {[%emt 0:03:05]} Rac8 {[%emt 0:02:50]} 16. Qe4 {[%emt 0:05:55]} Nxd4 {[%emt 0:04:15]} 17. Nxd4 {[%emt 0:00:35]} Bc6 {[%emt 0:02:09]} 18. Nxc6 {[%emt 0:01:45]} Qxc6 {[%emt 0:01:08]} 19. Qxc6 {[%emt 0:01:04]} Nxc6 {[%emt 0:00:13]} 20. f4 {[%emt 0:00:19]} Na5 {[%emt 0:00:34]} 21. Bc2 {[%emt 0:00:11]} Nc4 {[%emt 0:00:40]} 22. Rhe1 {[%emt 0:00:23]} Rxd1+ {[%emt 0:00:24]} 23. Bxd1 {[%emt 0:00:22]} Rd8 {[%emt 0:00:38]} 24. Bf3 {[%emt 0:00:14]} b6 {[%emt 0:00:22]} 25. h4 {[%emt 0:00:48]} Kf8 {[%emt 0:00:24]} 26. b3 {[%emt 0:01:42]} Nd6 {[%emt 0:01:03]} 27. Rd1 {[%emt 0:01:19]} Ke7 {[%emt 0:00:12]} 28. g4 {[%emt 0:00:15]} Rc8 {[%emt 0:00:29]} 29. c4 {[%emt 0:00:37]} b5 {[%emt 0:00:22]} 30. Kb2 {[%emt 0:03:10]} bxc4 {[%emt 0:00:12]} 31. bxc4 {[%emt 0:00:05]} Rxc4 {[%emt 0:00:22]} 32. Rc1 {[%emt 0:00:41]} Rxf4 {[%emt 0:00:59]} 33. Rc3 {[%emt 0:00:41]} Rc4 {[%emt 0:00:36]} 34. Rb3 {[%emt 0:03:11]} Rc5 {[%emt 0:02:40]} 35. a3 {[%emt 0:01:39]} Nc4+ {[%emt 0:01:38]} 36. Ka2 {[%emt 0:01:02]} Rc7 {[%emt 0:00:37]} 37. Rc3 {[%emt 0:00:20]} Kd7 {[%emt 0:01:54]} 38. Be2 {[%emt 0:03:12]} Ne5 {[%emt 0:00:38]} 39. Rxc7+ {[%emt 0:04:33]} Kxc7 {[%emt 0:00:12]} 40. a4 {[%emt 0:00:36]} Kd6 {[%emt 0:00:50]} 41. Kb3 {[%emt 0:00:23]} Kc5 {[%emt 0:00:00]} 42. Kc3 {[%emt 0:00:51]} f5 {[%emt 0:00:06]} 43. gxf5 {[%emt 0:00:18]} exf5 {[%emt 0:00:05]} 44. h5 {[%emt 0:00:23]} f4 {[%emt 0:00:34]} 45. Kd2 {[%emt 0:00:38]} Kd4 {[%emt 0:00:10]} 46. Bd1 {[%emt 0:00:35]} a5 {[%emt 0:01:59]} 47. Ke1 {[%emt 0:01:22]} Ke3 {[%emt 0:00:17]} 48. Be2 {[%emt 0:00:38]} f3 {[%emt 0:00:12]} 49. Bb5 {[%emt 0:01:02]} Ng4 {[%emt 0:02:02]} 50. Ba6 {[%emt 0:02:23]} Nf6 {[%emt 0:00:23]} 0-1